bitfinex-derivatives/quotes_BTCF0:USTF0_20250320
["timestamp","ask_amount","ask_price","bid_price","bid_amount"]
[1742508604856,0.177991,84315.0,84314.0,0.1186603]
[1742508605256,0.177991,84315.0,84314.0,0.1764603]
[1742508605756,0.177991,84315.0,84314.0,0.2359603]
[1742508605757,0.17945601,84315.0,84314.0,0.2359603]
[1742508606158,0.18045601,84315.0,84314.0,0.2359603]
[1742508606357,0.18145601,84315.0,84314.0,0.2359603]
[1742508607263,0.06279491,84315.0,84314.0,0.2359603]
[1742508607763,0.17789491,84315.0,84314.0,0.2359603]
[1742508618451,0.11856501,84315.0,84314.0,0.2359603]
[1742508618657,0.06246501,84315.0,84314.0,0.2359603]
[1742508619459,0.00346501,84315.0,84314.0,0.3497603]
[1742508621365,0.3608,84318.0,84317.0,0.1186569]
[1742508621566,0.3608,84318.0,84317.0,0.3586569]
[1742508621755,0.3608,84318.0,84317.0,0.5320569]
[1742508622563,0.001,84318.0,84317.0,0.5320569]
[1742508622773,0.002,84318.0,84317.0,0.5320569]
[1742508626168,0.3608,84325.0,84324.0,0.1186471]
[1742508626468,0.3608,84325.0,84324.0,0.2324471]
[1742508626770,0.3608,84325.0,84324.0,0.3480471]
[1742508627567,0.3608,84325.0,84324.0,0.3490471]
[1742508627769,0.3618,84325.0,84324.0,0.3500471]
[1742508630265,0.1133,84332.0,84331.0,0.1186372]
[1742508630266,0.055,84332.0,84331.0,0.1186372]
[1742508630572,0.055,84332.0,84331.0,0.2323972]
[1742508630873,0.055,84332.0,84331.0,0.4085972]
[1742508631471,0.055,84332.0,84331.0,0.4105972]
[1742508631871,0.055,84332.0,84331.0,0.4125972]
[1742508635673,0.3608,84340.0,84339.0,0.118626]
[1742508636061,0.3608,84340.0,84339.0,0.231826]
[1742508637172,0.3618,84340.0,84339.0,0.231826]
[1742508637968,0.3618,84340.0,84339.0,0.233826]
[1742508638370,0.3618,84340.0,84339.0,0.24559367]
[1742508639279,0.4792,84340.0,84339.0,0.24559367]
[1742508641572,0.1184,84340.0,84339.0,0.24559367]
[1742508647687,0.1184,84340.0,84339.0,0.18989367]
[1742508656892,0.1184,84340.0,84339.0,0.24509367]
[1742508663995,0.29564191,84340.0,84339.0,0.24509367]
[1742508667096,0.1184,84340.0,84339.0,0.24509367]
[1742508667702,0.2370246,84340.0,84339.0,0.233326]
[1742508668800,0.2370246,84340.0,84339.0,0.24479033]
[1742508669002,0.2370246,84340.0,84339.0,0.233326]
[1742508669498,0.2370246,84340.0,84339.0,0.178126]
[1742508669702,0.2370246,84340.0,84339.0,0.120626]
[1742508674708,0.2370246,84340.0,84339.0,0.179926]
[1742508676510,0.2370246,84340.0,84339.0,0.120626]
[1742508676703,0.2370246,84340.0,84339.0,0.181226]
[1742508680205,0.41481533,84340.0,84339.0,0.181226]
[1742508681604,0.41481533,84340.0,84339.0,0.120626]
[1742508683113,0.41481533,84340.0,84339.0,0.179626]
[1742508684004,0.2370246,84340.0,84339.0,0.179626]
[1742508686702,0.2370246,84340.0,84339.0,0.241626]
[1742508688204,0.1184,84340.0,84339.0,0.241626]
[1742508691417,0.2370246,84340.0,84339.0,0.241626]
[1742508694022,0.1184,84340.0,84339.0,0.241626]
[1742508694217,0.0593005,84357.0,84347.0,0.1186147]
[1742508694418,0.0598,84354.0,84347.0,0.1186147]
[1742508694716,0.0598,84354.0,84347.0,0.2370147]
[1742508695023,0.0598,84354.0,84347.0,0.24874042]
[1742508695217,0.13036285,84357.0,84347.0,0.24874042]
[1742508695421,0.00317789,84348.0,84347.0,0.24874042]
[1742508695622,0.00317789,84348.0,84347.0,0.31144042]
[1742508698211,0.00317789,84348.0,84347.0,0.57144042]
[1742508698622,0.1185986,84359.0,84358.0,0.1185993]
[1742508699716,0.1798965,84360.0,84359.0,0.1185978]
[1742508699921,0.1221,84360.0,84359.0,0.1800978]
[1742508700221,0.2406964,84360.0,84359.0,0.1800978]
[1742508701122,0.3024964,84360.0,84359.0,0.2394978]
[1742508701326,0.3104964,84360.0,84359.0,0.2404978]
[1742508702522,0.1919,84360.0,84359.0,0.2404978]
[1742508702924,0.3104964,84360.0,84359.0,0.2404978]
[1742508712328,0.2491964,84360.0,84359.0,0.2404978]
[1742508712829,0.1306,84360.0,84359.0,0.2404978]
[1742508713030,0.2491964,84360.0,84359.0,0.2404978]
[1742508713731,0.1265964,84360.0,84359.0,0.2404978]
[1742508714227,0.2499964,84360.0,84359.0,0.2404978]
[1742508719928,0.1314,84360.0,84359.0,0.2404978]
[1742508720634,0.2499964,84360.0,84359.0,0.2404978]
[1742508721224,0.1314,84360.0,84359.0,0.2404978]
[1742508726538,0.2499964,84360.0,84359.0,0.2404978]
[1742508726736,0.1314,84360.0,84359.0,0.2404978]
[1742508727235,0.2499964,84360.0,84359.0,0.2404978]
[1742508727631,0.1314,84360.0,84359.0,0.2404978]
[1742508729131,0.2499964,84360.0,84359.0,0.2404978]
[1742508729837,0.1314,84360.0,84359.0,0.2404978]
[1742508731432,0.2499964,84360.0,84359.0,0.2404978]
[1742508733640,0.6107964,84360.0,84359.0,0.2404978]
[1742508741132,0.82414344,84360.0,84359.0,0.2404978]
[1742508745340,0.82414344,84360.0,84359.0,0.2984978]
[1742508749342,0.82414344,84360.0,84359.0,0.2404978]
[1742508749943,0.6107964,84360.0,84359.0,0.2404978]
[1742508750338,0.4922,84360.0,84359.0,0.2404978]
[1742508750945,0.64438706,84375.0,84366.0,0.118588]
[1742508751145,0.0588,84368.0,84366.0,0.232268]
[1742508751350,0.0588,84368.0,84366.0,0.287768]
[1742508751540,0.0588,84368.0,84366.0,0.346768]
[1742508752539,0.00317789,84367.0,84366.0,0.346768]
[1742508752941,0.00317789,84367.0,84366.0,0.35835885]
[1742508753651,0.00317789,84367.0,84366.0,0.59835885]
[1742508753949,0.00617789,84367.0,84366.0,0.59835885]
[1742508754553,0.00417789,84367.0,84366.0,0.59835885]
[1742508758655,0.3608,84375.0,84374.0,0.1185768]
[1742508758861,0.3608,84375.0,84374.0,0.2322168]
[1742508760157,0.3648,84375.0,84374.0,0.3439168]
[1742508760946,0.3678,84375.0,84374.0,0.3439168]
[1742508768255,0.0592941,84366.0,84357.0,0.51564162]
[1742508768451,0.0567,84365.0,84364.0,0.1185908]
[1742508768664,0.1772,84365.0,84364.0,0.24857609]
[1742508770167,0.1186,84365.0,84364.0,0.24857609]
[1742508771962,0.1186,84365.0,84364.0,0.51857609]
[1742508775470,0.0619,84365.0,84364.0,0.51857609]
[1742508793276,0.0619,84365.0,84364.0,0.40047609]
[1742508793473,0.5412894,84365.0,84364.0,0.2321908]
[1742508793670,0.4227,84365.0,84364.0,0.2321908]
[1742508794372,0.483,84365.0,84364.0,0.2321908]
[1742508805179,0.1185908,84364.0,84363.0,0.1186322]
[1742508805387,0.48404001,84365.0,84364.0,0.1185908]
[1742508805590,0.4221,84365.0,84364.0,0.1185908]
[1742508805881,0.5406894,84365.0,84364.0,0.1185908]
[1742508806087,0.4221,84365.0,84364.0,0.1185908]
[1742508806287,0.4211,84365.0,84364.0,0.1185908]
[1742508806986,0.4211,84365.0,84363.0,0.059336]
[1742508806987,0.1185908,84364.0,84363.0,0.1186317]
[1742508807378,0.1733908,84364.0,84363.0,0.1186317]
[1742508809283,0.1743908,84364.0,84363.0,0.1186317]
[1742508811788,0.1743908,84364.0,84363.0,0.1185917]
[1742508815893,0.1743908,84364.0,84363.0,0.1732917]
[1742508816295,0.1743908,84364.0,84363.0,0.1185917]
[1742508819791,0.1743908,84364.0,84363.0,0.1732917]
[1742508822712,0.2339908,84364.0,84363.0,0.2282917]
[1742508827002,0.44713893,84364.0,84363.0,0.2282917]
[1742508830902,0.2339908,84364.0,84363.0,0.2282917]
[1742508840421,0.44738871,84364.0,84363.0,0.2282917]
[1742508849520,0.2339908,84364.0,84363.0,0.2282917]
[1742508852223,0.2339908,84364.0,84363.0,0.1097]
[1742508852925,0.2339908,84364.0,84363.0,0.2282922]
[1742508854431,0.2339908,84364.0,84363.0,0.1097]
[1742508856432,0.2339908,84364.0,84363.0,0.0547]
[1742508856818,0.1186091,84352.0,84351.0,0.1186079]
[1742508857029,0.1186091,84351.0,84350.0,0.21369206]
[1742508857334,0.1186091,84351.0,84342.0,0.00064]
[1742508857335,0.1186161,84346.0,84342.0,0.118621]
[1742508857533,0.1186161,84346.0,84343.0,0.1186194]
[1742508857718,0.2258161,84346.0,84344.0,0.118618]
[1742508857925,0.2258161,84346.0,84345.0,0.40244951]
[1742508858836,0.2258161,84346.0,84345.0,0.40744951]
[1742508859423,0.2258161,84346.0,84345.0,0.1236175]
[1742508860226,0.2258161,84346.0,84345.0,0.1266175]
[1742508860431,0.2258161,84346.0,84345.0,0.2316175]
[1742508862133,0.2258161,84346.0,84345.0,0.113]
[1742508864742,0.2258161,84346.0,84345.0,0.2316175]
[1742508875156,0.2258161,84346.0,84345.0,0.1795175]
[1742508876058,0.2258161,84346.0,84345.0,0.2339175]
[1742508876755,0.2258161,84346.0,84345.0,0.1153]
[1742508877056,0.2258161,84346.0,84345.0,0.2339175]
[1742508877457,0.2258161,84346.0,84345.0,0.1153]
[1742508892971,0.2258161,84346.0,84345.0,0.0609]
[1742508894176,0.2258161,84346.0,84345.0,0.008]
[1742508901675,0.2258161,84346.0,84345.0,0.0588]
[1742508902973,0.2258161,84346.0,84345.0,0.1105]
[1742508904978,0.2258161,84346.0,84345.0,0.0588]
[1742508905467,0.2258161,84346.0,84345.0,0.008]
[1742508908074,0.1186443,84327.0,84325.0,0.1136]
[1742508908276,0.2241443,84326.0,84325.0,0.3454678]
[1742508908480,0.2241443,84326.0,84325.0,0.0539]
[1742508908668,0.1186457,84325.0,84324.0,0.00875079]
[1742508908867,0.1186457,84325.0,84324.0,4e-05]
[1742508909271,0.2241457,84325.0,84324.0,4e-05]
[1742508909472,0.3377457,84325.0,84324.0,4e-05]
[1742508909676,0.1186471,84324.0,84323.0,0.0524]
[1742508909878,0.1186513,84321.0,84320.0,0.28383201]
[1742508910081,0.4794513,84321.0,84320.0,0.28383201]
[1742508910279,0.5812513,84321.0,84320.0,0.28383201]
[1742508910777,0.0593278,84318.0,84314.0,0.35479001]
[1742508910978,0.4794597,84315.0,84314.0,0.35479001]
[1742508911172,0.1186654,84311.0,84310.0,0.0534]
[1742508911372,0.0593352,84308.0,84304.0,4e-05]
[1742508911678,0.0593334,84310.0,84301.0,0.0534]
[1742508911679,0.118678,84302.0,84301.0,0.0534]
[1742508912173,0.118678,84302.0,84301.0,0.1055]
[1742508912370,0.218778,84302.0,84301.0,0.1055]
[1742508913278,0.219778,84302.0,84301.0,0.1125]
[1742508913980,0.219778,84302.0,84301.0,0.007]
[1742508914368,0.219778,84302.0,84301.0,0.0611]
[1742508914573,0.219778,84302.0,84301.0,0.007]
[1742508915283,0.219778,84302.0,84301.0,0.0611]
[1742508918693,0.580578,84302.0,84301.0,0.0611]
[1742508920078,0.68631018,84302.0,84301.0,0.0611]
[1742508920274,0.68631018,84302.0,84301.0,0.007]
[1742508922987,0.1186963,84289.0,84287.0,0.0006]
[1742508923291,0.4794963,84289.0,84288.0,0.2206977]
[1742508923482,0.5303963,84289.0,84288.0,0.2206977]
[1742508923788,0.2916717,84298.0,84297.0,0.1186851]
[1742508924093,0.3618,84302.0,84300.0,0.1186794]
[1742508924390,0.4794794,84302.0,84301.0,0.2189794]
[1742508924597,0.4794794,84302.0,84301.0,0.2713794]
[1742508927489,0.4804794,84302.0,84301.0,0.2713794]
[1742508928188,0.001,84302.0,84301.0,0.2713794]
[1742508928392,0.119678,84302.0,84301.0,0.2713794]
[1742508931294,0.001,84302.0,84301.0,0.2713794]
[1742508931791,0.119678,84302.0,84301.0,0.2713794]
[1742508936594,0.224278,84302.0,84301.0,0.2713794]
[1742508939396,0.10567576,84307.0,84306.0,0.1186724]
[1742508939701,0.00017789,84310.0,84309.0,0.1186682]
[1742508940202,0.00017789,84310.0,84309.0,0.1722682]
[1742508940385,0.00017789,84310.0,84309.0,0.2242682]
[1742508941889,0.00017789,84310.0,84309.0,0.2262682]
[1742508943501,0.00017789,84310.0,84309.0,0.2242682]
[1742508943701,0.00017789,84310.0,84309.0,0.2272682]
[1742508944402,0.00017789,84310.0,84309.0,0.2282682]
[1742508945493,0.00017789,84310.0,84309.0,0.2272682]
[1742508945694,0.00017789,84310.0,84309.0,0.2282682]
[1742508946997,0.00017789,84310.0,84309.0,0.2252682]
[1742508947203,0.00017789,84310.0,84309.0,0.2282682]
[1742508948592,0.00017789,84310.0,84309.0,0.2252682]
[1742508948906,0.00017789,84310.0,84309.0,0.2282682]
[1742508950310,0.00017789,84310.0,84309.0,0.2252682]
[1742508950608,0.00017789,84310.0,84309.0,0.2282682]
[1742508951206,0.14134187,84315.0,84314.0,0.1186611]
[1742508951507,0.14134187,84315.0,84314.0,0.5930611]
[1742508951704,0.14134187,84315.0,84314.0,0.6928611]
[1742508952901,0.05,84321.0,84320.0,0.1186527]
[1742508953304,0.05,84321.0,84320.0,0.3839527]
[1742508953705,0.05,84321.0,84320.0,0.3959695]
[1742508954397,0.1003,84321.0,84320.0,0.3959695]
[1742508954807,0.1003,84321.0,84320.0,0.3969695]
[1742508959602,0.05,84321.0,84320.0,0.3969695]
[1742508977432,0.05,84321.0,84320.0,0.3769695]
[1742508978324,0.00261,84321.0,84320.0,0.3769695]
[1742508978721,1e-08,84321.0,84320.0,0.3769695]
[1742508979831,0.0514,84322.0,84321.0,0.1186513]
[1742508980124,0.0514,84322.0,84321.0,0.4794513]
[1742508980331,0.14134187,84328.0,84327.0,0.1186429]
[1742508980633,0.14134187,84328.0,84327.0,0.2322029]
[1742508980923,0.21178775,84339.0,84338.0,0.1186274]
[1742508981124,0.3608,84350.0,84349.0,0.1186119]
[1742508981316,0.24813867,84351.0,84350.0,0.1186105]
[1742508981628,0.24813867,84351.0,84350.0,0.1663105]
[1742508981829,0.24813867,84351.0,84350.0,0.2179105]
[1742508982617,0.13610526,84357.0,84356.0,0.1186021]
[1742508982927,0.3608,84377.0,84356.0,0.1186021]
[1742508982928,0.3608,84377.0,84361.0,0.118595]
[1742508983124,0.3608,84377.0,84361.0,0.348595]
[1742508983325,0.3608,84377.0,84361.0,0.450495]
[1742508983527,0.0479,84370.0,84367.0,0.0592933]
[1742508983731,0.3608,84377.0,84370.0,0.1185824]
[1742508984116,0.37278931,84384.0,84383.0,0.1185641]
[1742508984321,0.3608,84384.0,84383.0,0.1185641]
[1742508985933,0.466,84384.0,84383.0,0.1185641]
[1742508986837,0.5945627,84384.0,84383.0,0.1195641]
[1742508987339,0.5845627,84384.0,84383.0,0.1185641]
[1742508987721,0.5885627,84384.0,84383.0,0.1185641]
[1742508998939,0.5885627,84384.0,84383.0,0.2206641]
[1742509002747,0.5885627,84384.0,84383.0,0.23222901]
[1742509003043,0.47,84384.0,84383.0,0.2206641]
[1742509003246,0.3648,84384.0,84383.0,0.2206641]
[1742509003549,0.1185424,84399.0,84391.0,0.1185529]
[1742509003846,0.1185431,84398.0,84391.0,0.1185529]
[1742509004042,0.1,84400.0,84399.0,0.1185416]
[1742509004441,0.1,84400.0,84399.0,0.2137416]
[1742509005546,0.104,84400.0,84399.0,0.2137416]
[1742509006341,0.109,84400.0,84399.0,0.22260638]
[1742509007845,0.36097777,84408.0,84407.0,0.1185304]
[1742509008051,0.41207777,84408.0,84407.0,0.1185304]
[1742509008252,0.46137777,84408.0,84407.0,0.2739304]
[1742509009033,0.46637777,84408.0,84407.0,0.2739304]
[1742509009440,0.58490677,84408.0,84407.0,0.0534]
[1742509009638,0.53380677,84408.0,84407.0,0.1719304]
[1742509009844,0.58490677,84408.0,84407.0,0.0534]
[1742509010050,0.59090677,84408.0,84407.0,0.0534]
[1742509011449,0.1185304,84407.0,84406.0,0.1185718]
[1742509011954,0.2191304,84407.0,84406.0,0.1185718]
[1742509013455,0.2241304,84407.0,84406.0,0.1185718]
[1742509013754,0.2241304,84407.0,84406.0,0.1670718]
[1742509014549,0.2241304,84407.0,84406.0,0.2166718]
[1742509016651,0.2241304,84407.0,84406.0,0.09814]
[1742509017047,0.2241304,84407.0,84406.0,0.04854]
[1742509017450,0.2241304,84407.0,84406.0,0.1185718]
[1742509017649,0.1235304,84407.0,84406.0,0.1185718]
[1742509017956,0.1235304,84407.0,84406.0,0.2714718]
[1742509020651,0.1235304,84407.0,84406.0,0.15294]
[1742509020853,0.2249304,84407.0,84406.0,0.2714718]
[1742509022357,0.2249304,84407.0,84406.0,0.2204718]
[1742509023957,0.2249304,84407.0,84406.0,0.10194]
[1742509024354,0.1185402,84400.0,84399.0,0.21325872]
[1742509024557,0.5928202,84400.0,84399.0,0.21325872]
[1742509024854,0.1185473,84395.0,84388.0,0.0488]
[1742509025055,0.1185473,84395.0,84388.0,0.0521]
[1742509025250,0.2220473,84395.0,84388.0,0.0521]
[1742509025655,0.2220473,84395.0,84393.0,4e-05]
[1742509026164,0.2220473,84395.0,84388.0,0.0521]
[1742509026165,0.1185557,84389.0,84388.0,0.0521]
[1742509026363,0.5928357,84389.0,84388.0,0.0521]
[1742509026559,0.7484357,84389.0,84388.0,0.0521]
[1742509027763,0.7494357,84389.0,84388.0,0.0521]
[1742509028360,0.7504357,84389.0,84388.0,0.0521]
[1742509029857,0.76250907,84389.0,84388.0,0.0521]
[1742509035371,0.1185571,84388.0,84387.0,0.0524]
[1742509035868,0.2217571,84388.0,84387.0,0.0524]
[1742509036472,0.2217571,84388.0,84387.0,0.1047]
[1742509036861,0.2227571,84388.0,84387.0,0.1047]
[1742509037267,0.2237571,84388.0,84387.0,0.1047]
[1742509039668,0.1205571,84388.0,84387.0,0.1047]
[1742509039870,0.2246571,84388.0,84387.0,0.1047]
[1742509045873,0.2246571,84388.0,84387.0,0.2232585]
[1742509047076,0.2246571,84388.0,84387.0,0.1047]
[1742509047476,0.2246571,84388.0,84387.0,0.0523]
[1742509047676,0.1185585,84387.0,84386.0,4e-05]
[1742509047878,0.0592889,84374.0,84370.0,0.86076]
[1742509048076,0.2214782,84373.0,84372.0,0.0534]
[1742509048270,0.1185838,84369.0,84366.0,0.0592934]
[1742509048676,0.2214838,84369.0,84366.0,0.0592934]
[1742509048871,0.2214838,84369.0,84360.0,0.1127975]
[1742509049183,0.2214838,84369.0,84360.0,0.05367777]
[1742509049379,0.23044276,84369.0,84361.0,0.118595]
[1742509049776,0.1185936,84362.0,84361.0,0.118595]
[1742509049974,0.4793936,84362.0,84361.0,0.118595]
[1742509050283,0.59576854,84362.0,84361.0,0.118595]
[1742509050883,0.59576854,84362.0,84361.0,0.123595]
[1742509051079,0.59576854,84362.0,84361.0,0.011]
[1742509056796,0.59576854,84362.0,84361.0,0.006]
[1742509057387,0.118595,84361.0,84360.0,0.00021777]
[1742509057592,0.479395,84361.0,84360.0,0.00021777]
[1742509057793,0.586095,84361.0,84360.0,0.00021777]
[1742509058694,0.1186049,84354.0,84353.0,0.0534]
[1742509058996,0.4794049,84354.0,84353.0,0.0534]
[1742509059189,0.1186133,84348.0,84347.0,0.1186135]
[1742509060396,0.1186133,84348.0,84347.0,0.1710135]
[1742509060987,0.1186133,84348.0,84347.0,0.1750135]
[1742509061796,0.1186133,84348.0,84347.0,0.0564]
[1742509062096,0.1679133,84348.0,84347.0,0.0564]
[1742509062294,0.1679133,84348.0,84347.0,0.1750147]
[1742509062595,0.2199133,84348.0,84347.0,0.0564]
[1742509063296,0.2199133,84348.0,84347.0,0.1043]
[1742509063892,0.2199133,84348.0,84347.0,0.2229147]
[1742509066795,0.1186133,84348.0,84347.0,0.2229147]
[1742509066994,0.3608,84354.0,84353.0,0.1186063]
[1742509067201,0.4794049,84354.0,84353.0,0.1186063]
[1742509067701,0.4794049,84354.0,84353.0,0.2806063]
[1742509068203,0.4804049,84354.0,84353.0,0.2806063]
[1742509068701,0.4804049,84354.0,84353.0,0.2816063]
[1742509070511,0.4794049,84354.0,84353.0,0.2856063]
[1742509073595,0.4794049,84354.0,84353.0,0.2846063]
[1742509074699,0.4794049,84354.0,84353.0,0.2856063]
[1742509076304,0.4794049,84354.0,84353.0,0.2846063]
[1742509077008,0.4794049,84354.0,84353.0,0.2816063]
[1742509077303,0.4794049,84354.0,84353.0,0.2846063]
[1742509077609,0.4794049,84354.0,84353.0,0.29645667]
[1742509079810,0.4794049,84354.0,84353.0,0.2846063]
[1742509080111,0.4794049,84354.0,84353.0,0.1131]
[1742509080317,0.6415049,84354.0,84353.0,0.1131]
[1742509080907,0.59845713,84354.0,84353.0,0.1131]
[1742509081212,0.4804049,84354.0,84353.0,0.2277063]
[1742509081408,0.4804049,84354.0,84353.0,0.2287063]
[1742509081611,0.4804049,84354.0,84353.0,0.24377869]
[1742509081815,0.4804049,84354.0,84353.0,0.2277063]
[1742509082011,0.4804049,84354.0,84353.0,0.2297063]
[1742509082516,0.3618,84354.0,84353.0,0.2297063]
[1742509082706,0.3608,84354.0,84353.0,0.24478798]
[1742509082903,0.0555,84362.0,84353.0,0.24478798]
[1742509082904,0.3608,84368.0,84362.0,0.0592967]
[1742509083213,0.3608,84368.0,84367.0,0.1185866]
[1742509083718,0.4793852,84368.0,84367.0,0.2230866]
[1742509084511,0.4793852,84368.0,84367.0,0.2250866]
[1742509084712,0.5847852,84368.0,84367.0,0.2250866]
[1742509085809,0.5847852,84368.0,84367.0,0.2290866]
[1742509086605,0.4662,84368.0,84359.0,0.00017777]
[1742509086917,0.1186049,84354.0,84353.0,0.0516]
[1742509087322,0.2775049,84354.0,84353.0,0.1702063]
[1742509087610,0.2775049,84354.0,84353.0,0.1066]
[1742509088005,0.2775049,84354.0,84353.0,0.055]
[1742509088201,0.28935759,84354.0,84353.0,0.055]
[1742509089015,0.1186077,84352.0,84351.0,0.28420127]
[1742509089210,0.1186077,84352.0,84351.0,0.40281037]
[1742509089409,0.2253077,84352.0,84351.0,0.40281037]
[1742509089609,0.3608,84354.0,84353.0,0.1186063]
[1742509089914,0.5979729,84370.0,84352.0,0.1047]
[1742509090113,0.16902,84369.0,84368.0,0.1185852]
[1742509090424,0.22302,84369.0,84368.0,0.1185852]
[1742509090611,0.3416038,84369.0,84368.0,0.1185852]
[1742509091407,0.1778834,84367.0,84366.0,0.1185869]
[1742509091815,0.2871834,84367.0,84366.0,0.1185869]
[1742509093216,0.2871834,84367.0,84366.0,0.1195869]
[1742509093622,0.168594,84367.0,84366.0,0.1195869]
[1742509093824,0.168594,84367.0,84366.0,0.1215869]
[1742509094320,0.113294,84367.0,84366.0,0.1195869]
[1742509094519,0.113294,84367.0,84366.0,0.1225869]
[1742509095126,0.113294,84367.0,84366.0,0.1215869]
[1742509096012,0.054,84367.0,84366.0,0.1215869]
[1742509096223,0.4793828,84370.0,84369.0,0.1185838]
[1742509097116,0.5349828,84370.0,84369.0,0.1185838]
[1742509097526,0.1778792,84368.0,84367.0,0.1185852]
[1742509098823,0.0592926,84368.0,84367.0,0.1215852]
[1742509099025,0.36152,84370.0,84369.0,0.1195838]
[1742509099227,0.3608,84370.0,84369.0,0.1195838]
[1742509099523,0.3608,84370.0,84369.0,0.24822761]
[1742509100019,0.3608,84370.0,84369.0,0.24722761]
[1742509100219,0.36097777,84376.0,84375.0,0.1185754]
[1742509100721,0.36097777,84376.0,84375.0,0.1714754]
[1742509101819,0.36097777,84376.0,84375.0,0.1734754]
[1742509102021,0.47955177,84376.0,84375.0,0.1734754]
[1742509102221,0.11875177,84376.0,84375.0,0.1734754]
[1742509102423,0.11875177,84376.0,84375.0,0.1744754]
[1742509102822,0.11875177,84376.0,84375.0,0.2302754]
[1742509103021,0.17315177,84376.0,84375.0,0.2302754]
[1742509103227,0.22515177,84376.0,84375.0,0.2302754]
[1742509104528,0.22515177,84376.0,84375.0,0.003]
[1742509104727,0.38975177,84376.0,84375.0,0.003]
[1742509105522,0.75055177,84376.0,84375.0,0.003]
[1742509105726,0.75055177,84376.0,84375.0,0.002]
[1742509106026,0.75055177,84376.0,84375.0,0.0557]
[1742509106822,0.75255177,84376.0,84375.0,0.0557]
[1742509107628,0.059291,84371.0,84362.0,0.0592964]
[1742509107824,0.4793852,84368.0,84361.0,0.0537]
[1742509108023,0.4793852,84368.0,84366.0,4e-05]
[1742509108225,0.5873852,84368.0,84366.0,4e-05]
[1742509108818,0.5873852,84368.0,84349.0,4e-05]
[1742509109035,0.1186091,84351.0,84349.0,4e-05]
[1742509109238,0.4794091,84351.0,84350.0,0.40285177]
[1742509109425,0.5866091,84351.0,84350.0,0.1186505]
[1742509109734,0.5866091,84351.0,84350.0,0.13334892]
[1742509110126,0.6411091,84351.0,84350.0,0.24314892]
[1742509110327,0.4201029,84354.0,84353.0,0.1186063]
[1742509110522,0.00017777,84359.0,84353.0,0.1186063]
[1742509110523,0.1779051,84356.0,84354.0,0.0593024]
[1742509110729,0.3608,84358.0,84356.0,0.059301]
[1742509110926,0.3608,84358.0,84357.0,0.2266007]
[1742509111122,0.3608,84358.0,84357.0,0.24129939]
[1742509111323,0.3608,84358.0,84357.0,0.25636709]
[1742509112525,0.3608,84358.0,84357.0,0.26638551]
[1742509113332,0.8401993,84358.0,84357.0,0.13169869]
[1742509113534,0.1186203,84343.0,84342.0,0.00017777]
[1742509113729,0.1186218,84342.0,84336.0,0.0531]
[1742509113927,0.1186288,84337.0,84330.0,0.0553]
[1742509114129,0.1186386,84330.0,84316.0,0.8618]
[1742509114429,0.2331186,84330.0,84320.0,0.0531]
[1742509115021,0.1186513,84321.0,84320.0,0.0531]
[1742509115226,0.5939313,84321.0,84320.0,0.0531]
[1742509115625,0.1186555,84318.0,84311.0,0.56826402]
[1742509115939,0.059327,84320.0,84312.0,0.107]
[1742509115940,0.1186626,84313.0,84312.0,0.107]
[1742509116127,0.5939426,84313.0,84312.0,0.107]
[1742509116546,0.5939426,84313.0,84312.0,0.0531]
[1742509116836,0.1186696,84308.0,84307.0,0.0539]
[1742509117446,0.2271696,84308.0,84307.0,0.0539]
[1742509118041,0.1186752,84304.0,84303.0,0.0515]
[1742509118241,0.1186752,84304.0,84303.0,0.1028]
[1742509118542,0.1186752,84304.0,84302.0,4e-05]
[1742509118543,0.1186766,84303.0,84302.0,4e-05]
[1742509118732,0.1186794,84301.0,84300.0,0.1]
[1742509118934,0.36152,84304.0,84302.0,0.1186766]
[1742509119134,0.3608,84304.0,84303.0,0.2214766]
[1742509119735,0.4794752,84304.0,84303.0,0.2224766]
[1742509119935,0.4794752,84304.0,84303.0,0.2264766]
[1742509121242,0.4794752,84304.0,84303.0,0.1078]
[1742509121640,0.5321752,84304.0,84303.0,0.2264766]
[1742509122449,0.4794752,84304.0,84303.0,0.2264766]
[1742509126534,0.3608,84304.0,84303.0,0.2264766]
[1742509127147,0.3608,84304.0,84303.0,0.2881766]
[1742509127452,0.0593317,84313.0,84308.0,0.1186696]
[1742509127645,0.0593291,84317.0,84308.0,0.1186696]
[1742509127646,0.1186652,84312.0,84308.0,0.2335096]
[1742509127846,0.0593323,84312.0,84308.0,0.2335096]
[1742509128149,0.4794682,84309.0,84308.0,0.2335096]
[1742509128348,0.4794682,84309.0,84308.0,0.2955096]
[1742509128738,0.4794682,84309.0,84308.0,0.2985096]
[1742509128943,0.4794682,84309.0,84308.0,0.3599096]
[1742509131562,0.4794682,84309.0,84308.0,0.37470822]
[1742509137852,0.4794682,84309.0,84308.0,0.39056079]
[1742509141562,0.4794682,84309.0,84308.0,0.41611263]
[1742509142263,0.4794682,84309.0,84308.0,0.39056079]
[1742509142463,0.4794682,84309.0,84308.0,0.41605673]
[1742509143054,0.4794682,84309.0,84308.0,0.30121673]
[1742509143254,0.4794682,84309.0,84308.0,0.18254713]
[1742509143454,0.5398682,84309.0,84308.0,0.06039048]
[1742509143661,0.5996682,84309.0,84308.0,0.06039048]
[1742509143867,0.5996682,84309.0,84308.0,0.03479549]
[1742509144268,0.5996682,84309.0,84308.0,0.15346509]
[1742509144762,0.5996682,84309.0,84308.0,0.15749549]
[1742509144969,0.5996682,84309.0,84308.0,0.09479549]
[1742509145468,0.5996682,84309.0,84308.0,0.09371457]
[1742509145970,0.5996682,84309.0,84308.0,0.07879862]
[1742509146164,0.5996682,84309.0,84308.0,0.01879862]
[1742509150265,0.5996682,84309.0,84308.0,0.13746822]
[1742509150864,0.5996682,84309.0,84308.0,0.01879862]
[1742509151064,0.3608,84309.0,84308.0,0.13746822]
[1742509151266,0.4794682,84309.0,84308.0,0.37414822]
[1742509151970,0.4794682,84309.0,84308.0,0.38902013]
[1742509153573,0.5369682,84309.0,84308.0,0.38902013]
[1742509154082,0.4794682,84309.0,84308.0,0.38902013]
[1742509155174,0.4794682,84309.0,84308.0,0.38908126]
[1742509157175,0.6064682,84309.0,84308.0,0.38905611]
[1742509157973,0.6064682,84309.0,84308.0,0.38905623]
[1742509158874,0.3608,84309.0,84308.0,0.38905623]
[1742509160180,0.3608,84309.0,84308.0,0.40073467]
[1742509160680,0.0593234,84325.0,84320.0,0.1186527]
[1742509160681,0.4204,84324.0,84320.0,0.1186527]
[1742509160985,0.0616,84323.0,84320.0,0.1186527]
[1742509161171,0.0616,84323.0,84320.0,0.2414527]
[1742509161588,0.0616,84323.0,84320.0,0.25625132]
[1742509161978,0.3608,84324.0,84320.0,0.27214018]